[Event "*** Titled Tuesday Blitz"]
[Site "Chess.com"]
[Date "2019.08.06"]
[Round "10"]
[White "marianokar"]
[Black "vova-79"]
[Result "1-0"]
[WhiteElo "2448"]
[BlackElo "2447"]
[TimeControl "180+2"]
[EndTime "15:23:55 PDT"]
[Termination "marianokar won on time"]

1. d4 {[%clk 0:03:01.9]} 1... d5 {[%clk 0:02:59.7]} 2. c4 {[%clk 0:02:59.8]}
2... c6 {[%clk 0:02:59.2]} 3. Nf3 {[%clk 0:02:59.6]} 3... Nf6 {[%clk 0:02:59.8]}
4. e3 {[%clk 0:03:00.9]} 4... e6 {[%clk 0:03:00.6]} 5. Nbd2 {[%clk 0:03:01.6]}
5... Nbd7 {[%clk 0:03:01.5]} 6. Bd3 {[%clk 0:03:02.1]} 6... Be7 {[%clk
0:03:02.6]} 7. O-O {[%clk 0:03:03.1]} 7... O-O {[%clk 0:03:02.4]} 8. b3 {[%clk
0:03:04.6]} 8... b6 {[%clk 0:03:02.5]} 9. Bb2 {[%clk 0:03:05.9]} 9... Bb7 {[%clk
0:03:04]} 10. Qe2 {[%clk 0:03:01.4]} 10... c5 {[%clk 0:03:03.5]} 11. Rad1 {[%clk
0:02:48.2]} 11... Qc7 {[%clk 0:03:01.3]} 12. e4 {[%clk 0:02:46.3]} 12... dxe4
{[%clk 0:02:49.5]} 13. Nxe4 {[%clk 0:02:46.5]} 13... Rad8 {[%clk 0:02:26]} 14.
Ng3 {[%clk 0:01:57.5]} 14... Rfe8 {[%clk 0:02:12.2]} 15. Bb1 {[%clk 0:01:52.7]}
15... Nf8 {[%clk 0:02:01.2]} 16. Ne5 {[%clk 0:01:33.4]} 16... Ng6 {[%clk
0:01:35.8]} 17. Rfe1 {[%clk 0:01:18]} 17... cxd4 {[%clk 0:01:21.7]} 18. Bxd4
{[%clk 0:01:18.3]} 18... Bb4 {[%clk 0:01:20.4]} 19. Bxg6 {[%clk 0:00:59.9]}
19... hxg6 {[%clk 0:01:14.9]} 20. Rf1 {[%clk 0:01:00.9]} 20... Ba8 {[%clk
0:01:11.9]} 21. Kh1 {[%clk 0:00:50.4]} 21... Rd6 {[%clk 0:00:55]} 22. Nf3 {[%clk
0:00:38.8]} 22... Qc6 {[%clk 0:00:31.7]} 23. Bxf6 {[%clk 0:00:37.5]} 23... gxf6
{[%clk 0:00:30.2]} 24. Rxd6 {[%clk 0:00:38.7]} 24... Bxd6 {[%clk 0:00:29.1]} 25.
Rd1 {[%clk 0:00:38.3]} 25... Be7 {[%clk 0:00:24.3]} 26. Nf1 {[%clk 0:00:32.9]}
26... Rd8 {[%clk 0:00:23.8]} 27. Rxd8+ {[%clk 0:00:32.6]} 27... Bxd8 {[%clk
0:00:25.7]} 28. Qd3 {[%clk 0:00:31.6]} 28... Be7 {[%clk 0:00:25.8]} 29. Ne3
{[%clk 0:00:28.5]} 29... Qc5 {[%clk 0:00:22.7]} 30. Nd2 {[%clk 0:00:23.9]} 30...
Qe5 {[%clk 0:00:19.3]} 31. Kg1 {[%clk 0:00:17.1]} 31... Kg7 {[%clk 0:00:16]} 32.
Qd7 {[%clk 0:00:16.4]} 32... Bb4 {[%clk 0:00:11.3]} 33. Ndf1 {[%clk 0:00:16.2]}
33... a5 {[%clk 0:00:09.2]} 34. Qa7 {[%clk 0:00:15.4]} 34... Be4 {[%clk
0:00:03.6]} 35. Qxb6 {[%clk 0:00:16.5]} 35... Qa1 {[%clk 0:00:03.8]} 36. c5
{[%clk 0:00:17.2]} 36... Qxa2 {[%clk 0:00:03.9]} 37. c6 {[%clk 0:00:18.2]} 37...
Be1 {[%clk 0:00:04.5]} 38. Ng4 {[%clk 0:00:18.4]} 38... Bf5 {[%clk 0:00:04.2]}
39. Nxf6 {[%clk 0:00:15.5]} 39... Kxf6 {[%clk 0:00:02.4]} 40. Qd4+ {[%clk
0:00:16.4]} 1-0

[Event "*** Titled Tuesday Blitz"]
[Site "Chess.com"]
[Date "2019.08.06"]
[Round "10"]
[White "tteshan"]
[Black "XiaoKangZhong"]
[Result "1/2-1/2"]
[WhiteElo "2168"]
[BlackElo "2325"]
[TimeControl "180+2"]
[EndTime "15:24:00 PDT"]
[Termination "Game drawn - insufficient material"]

1. d4 {[%clk 0:03:01.9]} 1... Nf6 {[%clk 0:02:59.9]} 2. c4 {[%clk 0:03:02.3]}
2... g6 {[%clk 0:03:01.6]} 3. Nc3 {[%clk 0:03:02.8]} 3... d5 {[%clk 0:03:03]} 4.
cxd5 {[%clk 0:03:03.3]} 4... Nxd5 {[%clk 0:03:04.9]} 5. Nxd5 {[%clk 0:03:04.5]}
5... Qxd5 {[%clk 0:03:05.1]} 6. Nf3 {[%clk 0:03:03.9]} 6... Bg7 {[%clk
0:03:05.1]} 7. e3 {[%clk 0:03:04.9]} 7... O-O {[%clk 0:03:06]} 8. Be2 {[%clk
0:03:02.3]} 8... Bg4 {[%clk 0:03:03.2]} 9. O-O {[%clk 0:03:01.1]} 9... c5 {[%clk
0:03:03.6]} 10. dxc5 {[%clk 0:02:58.5]} 10... Qxc5 {[%clk 0:03:04.8]} 11. h3
{[%clk 0:02:53.7]} 11... Bf5 {[%clk 0:03:02.3]} 12. Qb3 {[%clk 0:02:44]} 12...
Qc7 {[%clk 0:02:52.4]} 13. Bd2 {[%clk 0:02:38.8]} 13... Nc6 {[%clk 0:02:51]} 14.
Rac1 {[%clk 0:02:37.4]} 14... Rfd8 {[%clk 0:02:50.4]} 15. Bc3 {[%clk 0:02:32.1]}
15... Be6 {[%clk 0:02:38.9]} 16. Qa3 {[%clk 0:02:25.8]} 16... Rac8 {[%clk
0:02:30.9]} 17. Bxg7 {[%clk 0:02:24.2]} 17... Kxg7 {[%clk 0:02:31.7]} 18. Bb5
{[%clk 0:02:19.4]} 18... Qb6 {[%clk 0:02:25.6]} 19. Bxc6 {[%clk 0:02:05.6]}
19... Rxc6 {[%clk 0:02:20.5]} 20. Rxc6 {[%clk 0:01:55.3]} 20... bxc6 {[%clk
0:02:20.2]} 21. Qxe7 {[%clk 0:01:53.1]} 21... Rd7 {[%clk 0:02:13]} 22. Qa3
{[%clk 0:01:46.8]} 22... Rb7 {[%clk 0:02:07.4]} 23. Qc3+ {[%clk 0:01:42.4]}
23... f6 {[%clk 0:02:05.8]} 24. b3 {[%clk 0:01:43.2]} 24... Bd5 {[%clk
0:02:04.4]} 25. Nd4 {[%clk 0:01:33.2]} 25... Re7 {[%clk 0:01:44.2]} 26. Rc1
{[%clk 0:01:14.5]} 26... a5 {[%clk 0:01:26.9]} 27. Ne2 {[%clk 0:00:55.5]} 27...
Rc7 {[%clk 0:00:55.7]} 28. Nf4 {[%clk 0:00:54]} 28... Bf7 {[%clk 0:00:56.6]} 29.
e4 {[%clk 0:00:41]} 29... c5 {[%clk 0:00:49.4]} 30. e5 {[%clk 0:00:38.1]} 30...
Qc6 {[%clk 0:00:39.3]} 31. Qe3 {[%clk 0:00:28.6]} 31... fxe5 {[%clk 0:00:22.5]}
32. Qxe5+ {[%clk 0:00:29.1]} 32... Kg8 {[%clk 0:00:24.2]} 33. Rd1 {[%clk
0:00:20.7]} 33... Rc8 {[%clk 0:00:25.2]} 34. Nd3 {[%clk 0:00:18]} 34... Qc7
{[%clk 0:00:24.6]} 35. Qe4 {[%clk 0:00:16.8]} 35... Rd8 {[%clk 0:00:24.5]} 36.
Qe2 {[%clk 0:00:16.6]} 36... c4 {[%clk 0:00:23.7]} 37. bxc4 {[%clk 0:00:17.4]}
37... Bxc4 {[%clk 0:00:24.5]} 38. Qc2 {[%clk 0:00:15.1]} 38... Qf7 {[%clk
0:00:22.8]} 39. Nb2 {[%clk 0:00:14.7]} 39... Rxd1+ {[%clk 0:00:23.1]} 40. Qxd1
{[%clk 0:00:15.7]} 40... Bxa2 {[%clk 0:00:25]} 41. Qd8+ {[%clk 0:00:15.5]} 41...
Kg7 {[%clk 0:00:25.5]} 42. Qxa5 {[%clk 0:00:16.4]} 42... Bd5 {[%clk 0:00:25.4]}
43. Qc3+ {[%clk 0:00:17]} 43... Kg8 {[%clk 0:00:24.9]} 44. Nd3 {[%clk
0:00:18.1]} 44... Qb7 {[%clk 0:00:22.8]} 45. Nf4 {[%clk 0:00:15.4]} 45... Qb1+
{[%clk 0:00:22.6]} 46. Kh2 {[%clk 0:00:16.4]} 46... Qb8 {[%clk 0:00:24.3]} 47.
Qg3 {[%clk 0:00:16.1]} 47... Bf7 {[%clk 0:00:24.9]} 48. Nd3 {[%clk 0:00:16.1]}
48... Qxg3+ {[%clk 0:00:25.5]} 49. Kxg3 {[%clk 0:00:18]} 49... Kg7 {[%clk
0:00:26.7]} 50. Nf4 {[%clk 0:00:19.3]} 50... Kf6 {[%clk 0:00:28.6]} 51. h4
{[%clk 0:00:18.8]} 51... h6 {[%clk 0:00:29.5]} 52. Kf3 {[%clk 0:00:19.2]} 52...
g5 {[%clk 0:00:30.8]} 53. hxg5+ {[%clk 0:00:20.1]} 53... hxg5 {[%clk 0:00:32.7]}
54. Nd3 {[%clk 0:00:21.1]} 54... Kf5 {[%clk 0:00:33.8]} 55. g4+ {[%clk
0:00:21.6]} 55... Kf6 {[%clk 0:00:35.2]} 56. Kg3 {[%clk 0:00:21.5]} 56... Be6
{[%clk 0:00:36.3]} 57. f4 {[%clk 0:00:22]} 57... gxf4+ {[%clk 0:00:37.5]} 58.
Nxf4 {[%clk 0:00:23.2]} 58... Bxg4 {[%clk 0:00:38.9]} 1/2-1/2

[Event "*** Titled Tuesday Blitz"]
[Site "Chess.com"]
[Date "2019.08.06"]
[Round "10"]
[White "oezs95"]
[Black "Zq1"]
[Result "0-1"]
[WhiteElo "2375"]
[BlackElo "2551"]
[TimeControl "180+2"]
[EndTime "15:24:01 PDT"]
[Termination "Zq1 won by resignation"]

1. e4 {[%clk 0:03:01.9]} 1... c5 {[%clk 0:03:00.5]} 2. Nf3 {[%clk 0:03:02.8]}
2... d6 {[%clk 0:03:01.8]} 3. d4 {[%clk 0:03:03.7]} 3... cxd4 {[%clk 0:03:03.1]}
4. Nxd4 {[%clk 0:03:05.6]} 4... Nf6 {[%clk 0:03:04]} 5. Nc3 {[%clk 0:03:07.2]}
5... Nc6 {[%clk 0:03:05.3]} 6. Bg5 {[%clk 0:03:07.7]} 6... g6 {[%clk 0:03:06.1]}
7. Bxf6 {[%clk 0:03:04.4]} 7... exf6 {[%clk 0:03:07.4]} 8. Bc4 {[%clk
0:03:02.2]} 8... Bg7 {[%clk 0:03:08.3]} 9. O-O {[%clk 0:03:03.2]} 9... O-O
{[%clk 0:03:08.7]} 10. Ndb5 {[%clk 0:02:56.6]} 10... f5 {[%clk 0:03:08.8]} 11.
exf5 {[%clk 0:02:44.2]} 11... Bxf5 {[%clk 0:03:08.2]} 12. Nxd6 {[%clk
0:02:45.6]} 12... Bxc2 {[%clk 0:03:07.6]} 13. Nxf7 {[%clk 0:02:05]} 13... Qxd1
{[%clk 0:03:05.8]} 14. Ng5+ {[%clk 0:02:00.2]} 14... Kh8 {[%clk 0:03:02.9]} 15.
Nxd1 {[%clk 0:02:00.3]} 15... Ne5 {[%clk 0:02:25.6]} 16. Bb3 {[%clk 0:01:47.7]}
16... Bxb3 {[%clk 0:02:20.3]} 17. axb3 {[%clk 0:01:49.6]} 17... Nd3 {[%clk
0:02:05.4]} 18. Ne6 {[%clk 0:01:47.7]} 18... Rf6 {[%clk 0:02:00.7]} 19. Nxg7
{[%clk 0:01:48.4]} 19... Kxg7 {[%clk 0:02:00.5]} 20. Ne3 {[%clk 0:01:32.9]}
20... Rb6 {[%clk 0:02:00.2]} 21. Rfd1 {[%clk 0:01:23.6]} 21... Rxb3 {[%clk
0:01:59.8]} 22. Rd2 {[%clk 0:00:55.7]} 22... a5 {[%clk 0:01:35.4]} 23. Rad1
{[%clk 0:00:23.9]} 23... Nc5 {[%clk 0:01:35.4]} 24. Nc4 {[%clk 0:00:22.7]} 24...
a4 {[%clk 0:01:30.8]} 25. Rd5 {[%clk 0:00:21.5]} 25... Rc8 {[%clk 0:01:23]} 26.
h4 {[%clk 0:00:21.3]} 26... b5 {[%clk 0:01:20.8]} 27. Nd6 {[%clk 0:00:21.8]}
27... Rc6 {[%clk 0:01:21.9]} 28. Ne8+ {[%clk 0:00:20.9]} 28... Kh6 {[%clk
0:01:19.7]} 29. g4 {[%clk 0:00:18.5]} 29... Rb4 {[%clk 0:00:59.7]} 30. f3 {[%clk
0:00:09.2]} 30... Ne6 {[%clk 0:00:55]} 31. Nf6 {[%clk 0:00:08.2]} 31... Kg7
{[%clk 0:00:51]} 32. g5 {[%clk 0:00:07.8]} 32... Nf8 {[%clk 0:00:48.1]} 33. Ne8+
{[%clk 0:00:08.8]} 33... Kf7 {[%clk 0:00:47.4]} 34. Nd6+ {[%clk 0:00:10.2]}
34... Ke6 {[%clk 0:00:41]} 35. Nxb5 {[%clk 0:00:11.6]} 35... Rxb2 {[%clk
0:00:36.3]} 36. Na3 {[%clk 0:00:06.7]} 36... Rc3 {[%clk 0:00:29.4]} 37. Nb5
{[%clk 0:00:06.7]} 37... Rcc2 {[%clk 0:00:27.6]} 38. Nd4+ {[%clk 0:00:04.1]}
38... Kxd5 {[%clk 0:00:28]} 39. Nxc2+ {[%clk 0:00:05.7]} 39... Kc4 {[%clk
0:00:29.6]} 40. Ne3+ {[%clk 0:00:04.7]} 40... Kb3 {[%clk 0:00:30.8]} 41. Rd3+
{[%clk 0:00:05.1]} 41... Kb4 {[%clk 0:00:31.8]} 42. Nd5+ {[%clk 0:00:05.9]}
42... Kc4 {[%clk 0:00:32.7]} 43. Rd1 {[%clk 0:00:07.1]} 43... a3 {[%clk
0:00:32.4]} 44. Ne3+ {[%clk 0:00:08.5]} 44... Kb3 {[%clk 0:00:32.1]} 45. Rd3+
{[%clk 0:00:09.3]} 45... Kb4 {[%clk 0:00:32.9]} 46. Nd1 {[%clk 0:00:08.7]} 46...
Rb1 {[%clk 0:00:27.3]} 47. Kf2 {[%clk 0:00:07.9]} 47... a2 {[%clk 0:00:28.2]}
48. Ne3 {[%clk 0:00:07.9]} 48... Rb2+ {[%clk 0:00:27.6]} 49. Kg3 {[%clk
0:00:08.2]} 49... a1=Q {[%clk 0:00:28.3]} 50. Rd4+ {[%clk 0:00:07.8]} 50... Kc5
{[%clk 0:00:29]} 51. Rc4+ {[%clk 0:00:09.1]} 51... Kb5 {[%clk 0:00:29.8]} 0-1

[Event "*** Titled Tuesday Blitz"]
[Site "Chess.com"]
[Date "2019.08.06"]
[Round "10"]
[White "Aknok"]
[Black "PchelkinVK"]
[Result "0-1"]
[WhiteElo "2452"]
[BlackElo "2526"]
[TimeControl "180+2"]
[EndTime "15:24:08 PDT"]
[Termination "PchelkinVK won by resignation"]

1. d4 {[%clk 0:03:01.9]} 1... e5 {[%clk 0:02:43.7]} 2. dxe5 {[%clk 0:03:02.5]}
2... d6 {[%clk 0:02:44.5]} 3. Nf3 {[%clk 0:02:58.8]} 3... Nc6 {[%clk 0:02:44.8]}
4. Bf4 {[%clk 0:02:51]} 4... Bg4 {[%clk 0:02:44.2]} 5. exd6 {[%clk 0:02:49.9]}
5... Qf6 {[%clk 0:02:45.1]} 6. Qc1 {[%clk 0:02:40.7]} 6... Bxd6 {[%clk
0:02:44.7]} 7. Bxd6 {[%clk 0:02:40.1]} 7... Qxd6 {[%clk 0:02:46.6]} 8. Nc3
{[%clk 0:02:28.1]} 8... O-O-O {[%clk 0:02:45.6]} 9. e3 {[%clk 0:02:26]} 9... Nf6
{[%clk 0:02:40.1]} 10. Be2 {[%clk 0:02:25.6]} 10... h5 {[%clk 0:02:36.2]} 11.
O-O {[%clk 0:02:23]} 11... Bxf3 {[%clk 0:02:34.6]} 12. Bxf3 {[%clk 0:02:22.4]}
12... Ng4 {[%clk 0:02:36.5]} 13. g3 {[%clk 0:02:17.5]} 13... Nce5 {[%clk
0:02:36.4]} 14. Bg2 {[%clk 0:02:11.6]} 14... h4 {[%clk 0:02:36.9]} 15. Rd1
{[%clk 0:02:03.4]} 15... Qh6 {[%clk 0:02:08]} 16. Rxd8+ {[%clk 0:01:47.6]} 16...
Rxd8 {[%clk 0:02:06.8]} 17. e4 {[%clk 0:01:05.3]} 17... Rd2 {[%clk 0:01:44.9]}
18. f4 {[%clk 0:00:54.7]} 18... hxg3 {[%clk 0:00:56.3]} 19. Qxd2 {[%clk
0:00:47.1]} 19... Qxh2+ {[%clk 0:00:56]} 20. Kf1 {[%clk 0:00:48.2]} 20... Nf3
{[%clk 0:00:52.9]} 21. Bxf3 {[%clk 0:00:38.7]} 21... Qxd2 {[%clk 0:00:52.9]} 22.
Bxg4+ {[%clk 0:00:39.8]} 22... Kb8 {[%clk 0:00:53.9]} 23. Ne2 {[%clk 0:00:35]}
23... Qe3 {[%clk 0:00:46]} 24. Nxg3 {[%clk 0:00:13.4]} 24... Qxg3 {[%clk
0:00:44.5]} 25. Be2 {[%clk 0:00:09.9]} 25... Qxf4+ {[%clk 0:00:43.1]} 26. Ke1
{[%clk 0:00:10.9]} 26... Qxe4 {[%clk 0:00:40.5]} 27. Rd1 {[%clk 0:00:11.8]}
27... a6 {[%clk 0:00:34.5]} 28. Rd8+ {[%clk 0:00:11.6]} 28... Ka7 {[%clk
0:00:34.4]} 29. Kd2 {[%clk 0:00:12.8]} 29... g5 {[%clk 0:00:29]} 30. Bd3 {[%clk
0:00:09.7]} 30... Qf4+ {[%clk 0:00:27.2]} 31. Kd1 {[%clk 0:00:10.9]} 31... g4
{[%clk 0:00:24.9]} 32. Rg8 {[%clk 0:00:08.2]} 32... g3 {[%clk 0:00:25.1]} 33. b3
{[%clk 0:00:03.7]} 33... f5 {[%clk 0:00:18.5]} 34. Rg7 {[%clk 0:00:04.9]} 34...
Qf3+ {[%clk 0:00:16.5]} 35. Kc1 {[%clk 0:00:05.6]} 35... g2 {[%clk 0:00:13.7]}
36. a4 {[%clk 0:00:05.5]} 36... g1=Q+ {[%clk 0:00:13.4]} 37. Rxg1 {[%clk
0:00:05.5]} 37... Qe3+ {[%clk 0:00:14.5]} 38. Kb2 {[%clk 0:00:07.4]} 38... Qxg1
{[%clk 0:00:15.1]} 39. Bxf5 {[%clk 0:00:09.3]} 39... Qd4+ {[%clk 0:00:15.3]} 40.
Kb1 {[%clk 0:00:10.5]} 40... Qc3 {[%clk 0:00:15.3]} 41. Bd3 {[%clk 0:00:11.4]}
41... Kb6 {[%clk 0:00:16.1]} 42. Kc1 {[%clk 0:00:11.5]} 42... Kc5 {[%clk
0:00:16.9]} 43. Kd1 {[%clk 0:00:12.6]} 43... Kd4 {[%clk 0:00:17.3]} 44. Ke2
{[%clk 0:00:13.9]} 44... c6 {[%clk 0:00:15.7]} 45. Kf3 {[%clk 0:00:13.9]} 45...
Qxd3+ {[%clk 0:00:14.7]} 46. cxd3 {[%clk 0:00:14.1]} 46... Kxd3 {[%clk
0:00:15.6]} 47. a5 {[%clk 0:00:13.5]} 47... Kc3 {[%clk 0:00:16]} 48. Ke3 {[%clk
0:00:14.8]} 48... Kxb3 {[%clk 0:00:16.7]} 49. Kd4 {[%clk 0:00:16.7]} 49... Kb4
{[%clk 0:00:17.3]} 50. Kd3 {[%clk 0:00:17.5]} 50... Kxa5 {[%clk 0:00:18.1]} 0-1

[Event "*** Titled Tuesday Blitz"]
[Site "Chess.com"]
[Date "2019.08.06"]
[Round "10"]
[White "WPWPWP-2015"]
[Black "vladimirdamjanovic"]
[Result "1-0"]
[WhiteElo "2446"]
[BlackElo "2605"]
[TimeControl "180+2"]
[EndTime "15:24:16 PDT"]
[Termination "WPWPWP-2015 won by resignation"]

1. e4 {[%clk 0:03:01.9]} 1... c6 {[%clk 0:03:00.4]} 2. d4 {[%clk 0:02:57.9]}
2... d5 {[%clk 0:03:01.2]} 3. Nc3 {[%clk 0:02:56.9]} 3... dxe4 {[%clk
0:03:00.8]} 4. Nxe4 {[%clk 0:02:58.1]} 4... Bf5 {[%clk 0:03:01.7]} 5. Ng3 {[%clk
0:02:59.2]} 5... Bg6 {[%clk 0:03:02.9]} 6. h4 {[%clk 0:03:00.4]} 6... h6 {[%clk
0:03:03.1]} 7. N1e2 {[%clk 0:03:01]} 7... e5 {[%clk 0:03:01.6]} 8. dxe5 {[%clk
0:02:59.9]} 8... Qxd1+ {[%clk 0:03:02.3]} 9. Kxd1 {[%clk 0:03:00.3]} 9... Na6
{[%clk 0:02:48]} 10. c3 {[%clk 0:02:55.1]} 10... O-O-O+ {[%clk 0:02:47.6]} 11.
Ke1 {[%clk 0:02:54.4]} 11... Nc5 {[%clk 0:02:39.9]} 12. Nf4 {[%clk 0:02:54.2]}
12... Bh7 {[%clk 0:02:40]} 13. Be3 {[%clk 0:02:52.3]} 13... Re8 {[%clk
0:02:31.3]} 14. Bc4 {[%clk 0:02:36.3]} 14... Rxe5 {[%clk 0:02:28.7]} 15. Bxf7
{[%clk 0:02:32.3]} 15... Nf6 {[%clk 0:02:21]} 16. Kf1 {[%clk 0:02:14.9]} 16...
Nfe4 {[%clk 0:02:10.3]} 17. Nxe4 {[%clk 0:02:07.6]} 17... Bxe4 {[%clk
0:01:59.8]} 18. Ng6 {[%clk 0:02:06.7]} 18... Bxg6 {[%clk 0:01:55.4]} 19. Bxg6
{[%clk 0:02:08.6]} 19... Bd6 {[%clk 0:01:45.5]} 20. Bd4 {[%clk 0:01:58]} 20...
Re7 {[%clk 0:01:44.3]} 21. Re1 {[%clk 0:01:45.8]} 21... Rxe1+ {[%clk 0:01:45.1]}
22. Kxe1 {[%clk 0:01:46.7]} 22... Kc7 {[%clk 0:01:45.5]} 23. h5 {[%clk
0:01:44.8]} 23... Ne6 {[%clk 0:01:45.5]} 24. Be3 {[%clk 0:01:42]} 24... Rd8
{[%clk 0:01:37.4]} 25. Rh4 {[%clk 0:01:38]} 25... Bc5 {[%clk 0:01:24.9]} 26. Re4
{[%clk 0:01:28.2]} 26... Bxe3 {[%clk 0:01:23.5]} 27. fxe3 {[%clk 0:01:28.9]}
27... Nc5 {[%clk 0:01:15.5]} 28. Rg4 {[%clk 0:00:53]} 28... Rd7 {[%clk
0:01:09.5]} 29. Ke2 {[%clk 0:00:51.9]} 29... b5 {[%clk 0:01:06.2]} 30. b3 {[%clk
0:00:51.7]} 30... Re7 {[%clk 0:01:05.4]} 31. Bf5 {[%clk 0:00:45.5]} 31... a5
{[%clk 0:01:04.4]} 32. Rg6 {[%clk 0:00:42.1]} 32... b4 {[%clk 0:01:03.9]} 33.
cxb4 {[%clk 0:00:35.8]} 33... axb4 {[%clk 0:01:05.8]} 34. Rg4 {[%clk 0:00:35.6]}
34... Re5 {[%clk 0:00:52.7]} 35. Rxg7+ {[%clk 0:00:35.5]} 35... Kb6 {[%clk
0:00:53.8]} 36. g4 {[%clk 0:00:36]} 36... Na6 {[%clk 0:00:37.3]} 37. Rg6 {[%clk
0:00:36]} 37... Ra5 {[%clk 0:00:38.1]} 38. Bb1 {[%clk 0:00:26.8]} 38... Nc7
{[%clk 0:00:37.6]} 39. Rxh6 {[%clk 0:00:27.3]} 39... Nd5 {[%clk 0:00:39.2]} 40.
Kf3 {[%clk 0:00:26.4]} 40... Nc3 {[%clk 0:00:39.5]} 41. Be4 {[%clk 0:00:25.1]}
41... Rxa2 {[%clk 0:00:33.4]} 42. Rxc6+ {[%clk 0:00:25.1]} 42... Kb5 {[%clk
0:00:34.5]} 43. Rc8 {[%clk 0:00:23.7]} 43... Rh2 {[%clk 0:00:34.9]} 44. Rb8+
{[%clk 0:00:21.8]} 44... Kc5 {[%clk 0:00:34.5]} 45. Kg3 {[%clk 0:00:21.9]} 45...
Re2 {[%clk 0:00:34]} 46. Bf3 {[%clk 0:00:21.5]} 46... Rxe3 {[%clk 0:00:33.8]}
47. h6 {[%clk 0:00:22.6]} 47... Re7 {[%clk 0:00:30.3]} 48. g5 {[%clk 0:00:23.4]}
48... Nb5 {[%clk 0:00:28]} 49. g6 {[%clk 0:00:21.2]} 49... Nd4 {[%clk 0:00:29]}
50. h7 {[%clk 0:00:21.5]} 50... Re3 {[%clk 0:00:25.4]} 51. Rf8 {[%clk
0:00:20.6]} 51... Ne6 {[%clk 0:00:21.2]} 52. Rf5+ {[%clk 0:00:20.7]} 52... Kd6
{[%clk 0:00:21.5]} 53. h8=Q {[%clk 0:00:21]} 1-0

[Event "*** Titled Tuesday Blitz"]
[Site "Chess.com"]
[Date "2019.08.06"]
[Round "10"]
[White "M1711"]
[Black "FairChess_on_YouTube"]
[Result "0-1"]
[WhiteElo "2567"]
[BlackElo "3034"]
[TimeControl "180+2"]
[EndTime "15:24:17 PDT"]
[Termination "FairChess_on_YouTube won by resignation"]

1. d4 {[%clk 0:03:01.9]} 1... Nf6 {[%clk 0:03:00.3]} 2. Bg5 {[%clk 0:03:03]}
2... Ne4 {[%clk 0:02:57]} 3. Bf4 {[%clk 0:03:03.2]} 3... d5 {[%clk 0:02:56.4]}
4. e3 {[%clk 0:03:03.1]} 4... c5 {[%clk 0:02:54.8]} 5. Bd3 {[%clk 0:02:58.9]}
5... Nf6 {[%clk 0:02:54.3]} 6. c3 {[%clk 0:02:56]} 6... Nc6 {[%clk 0:02:54.4]}
7. Nd2 {[%clk 0:02:50.9]} 7... Bg4 {[%clk 0:02:52.6]} 8. Ngf3 {[%clk 0:02:39.2]}
8... a6 {[%clk 0:02:46.1]} 9. h3 {[%clk 0:02:38.9]} 9... Bh5 {[%clk 0:02:46.7]}
10. O-O {[%clk 0:02:39.1]} 10... e6 {[%clk 0:02:46.6]} 11. a4 {[%clk 0:02:38.4]}
11... Bd6 {[%clk 0:02:42.5]} 12. Bxd6 {[%clk 0:02:38.2]} 12... Qxd6 {[%clk
0:02:44.4]} 13. dxc5 {[%clk 0:02:30.1]} 13... Qxc5 {[%clk 0:02:44.5]} 14. e4
{[%clk 0:02:31]} 14... Ne5 {[%clk 0:02:30.4]} 15. Be2 {[%clk 0:02:12.5]} 15...
Bxf3 {[%clk 0:01:49.7]} 16. Bxf3 {[%clk 0:02:06.6]} 16... O-O-O {[%clk
0:01:43.3]} 17. Qe2 {[%clk 0:01:59.3]} 17... d4 {[%clk 0:01:32]} 18. Nb3 {[%clk
0:01:44.7]} 18... d3 {[%clk 0:01:32.8]} 19. Nxc5 {[%clk 0:01:37]} 19... dxe2
{[%clk 0:01:33.9]} 20. Bxe2 {[%clk 0:01:38.9]} 20... Rd2 {[%clk 0:01:34.6]} 21.
Rfe1 {[%clk 0:01:33.3]} 21... Rxb2 {[%clk 0:01:08]} 22. Rab1 {[%clk 0:01:28.7]}
22... Rxb1 {[%clk 0:01:00.2]} 23. Rxb1 {[%clk 0:01:28.6]} 23... Kc7 {[%clk
0:01:01.5]} 24. f4 {[%clk 0:01:21.6]} 24... Ned7 {[%clk 0:01:00.2]} 25. Nxd7
{[%clk 0:01:11.5]} 25... Nxd7 {[%clk 0:01:01]} 26. Kf2 {[%clk 0:01:10.7]} 26...
Nc5 {[%clk 0:01:01.7]} 27. Rb4 {[%clk 0:01:08.3]} 27... a5 {[%clk 0:00:57.7]}
28. Rc4 {[%clk 0:01:05.6]} 28... b6 {[%clk 0:00:58.7]} 29. Ke3 {[%clk
0:01:04.9]} 29... Rd8 {[%clk 0:00:57.3]} 30. g4 {[%clk 0:01:01.1]} 30... f6
{[%clk 0:00:56.9]} 31. h4 {[%clk 0:00:56.5]} 31... e5 {[%clk 0:00:57.1]} 32. f5
{[%clk 0:00:56]} 32... Kd6 {[%clk 0:00:53.2]} 33. g5 {[%clk 0:00:41.9]} 33...
fxg5 {[%clk 0:00:47]} 34. hxg5 {[%clk 0:00:43]} 34... Ke7 {[%clk 0:00:47.9]} 35.
Bf3 {[%clk 0:00:28.8]} 35... h6 {[%clk 0:00:44.7]} 36. gxh6 {[%clk 0:00:22.5]}
36... gxh6 {[%clk 0:00:46.6]} 37. Bh5 {[%clk 0:00:22.2]} 37... Kf6 {[%clk
0:00:45.6]} 38. Be2 {[%clk 0:00:22.6]} 38... Kg5 {[%clk 0:00:46.2]} 39. Kf3
{[%clk 0:00:21.5]} 39... Rd2 {[%clk 0:00:44.1]} 40. Ke3 {[%clk 0:00:18.2]} 40...
Ra2 {[%clk 0:00:43.6]} 41. Bd1 {[%clk 0:00:19.3]} 41... h5 {[%clk 0:00:41.9]}
42. f6 {[%clk 0:00:18.9]} 42... Kxf6 {[%clk 0:00:42.8]} 43. Bxh5 {[%clk
0:00:19.4]} 43... Kg5 {[%clk 0:00:42.4]} 44. Be8 {[%clk 0:00:17.1]} 44... Kg4
{[%clk 0:00:40.8]} 45. Rxc5 {[%clk 0:00:15.1]} 45... bxc5 {[%clk 0:00:41.2]} 46.
Kd3 {[%clk 0:00:16.8]} 46... Kf4 {[%clk 0:00:40.4]} 47. Bc6 {[%clk 0:00:15.4]}
47... Ra3 {[%clk 0:00:33.4]} 48. Kc4 {[%clk 0:00:14.6]} 48... Ke3 {[%clk
0:00:34.4]} 49. Kd5 {[%clk 0:00:04]} 49... Rxc3 {[%clk 0:00:32.2]} 50. Kxe5
{[%clk 0:00:05.4]} 50... Rd3 {[%clk 0:00:27.2]} 51. Bb5 {[%clk 0:00:06.1]} 51...
Rd4 {[%clk 0:00:27.5]} 52. Ke6 {[%clk 0:00:05.6]} 52... Kxe4 {[%clk 0:00:27.1]}
0-1